Workbook

Sheet ------ (hidden)

Sheet VXXXXX (hidden)

Sheet 징수실적
G1: 2014년 2월분 지방세 징수실적 보고서 (2014 회계)
R4: (단위 : 천원)
A5: 구 분 | E5: 목 표액 (예산액) | G5: 부 과 액 | I5: 징 수 액 | K5: 불납결손액 | M5: 미 수 납 액 | N5: 징 수 비 율 | Q5: 과오납 환부액
E6: 당 초 | F6: 최 종 | G6: 본월분 | H6: 누 계 | I6: 본월분 | J6: 누 계 | K6: 본월분 | L6: 누 계 | N6: 대목표 (당초) | O6: 대목표 (최종) | P6: 대부과 | Q6: 본월분 | R6: 누 계
A7: 총 괄 | B7: 합 계 | E7: =SUM(E8:E9) -> 256,412,900 | F7: 0 | G7: =SUM(G8:G9) -> 17,930,771 | H7: 34,616,763 | I7: 18,069,105 | J7: =SUM(J8:J9) -> 33,855,386 | K7: 0 | L7: 0 | M7: 761,377 | N7: =+J7/E7*100 -> 13.2 | O7: =+J7/F7*100 ->  | P7: =+J7/H7*100 -> 97.8 | Q7: =SUM(Q8:Q9) -> 21,885 | R7: =SUM(R8:R9) -> 25,174
B8: 도 세 | E8: =E11+E46+E47 -> 96,912,900 | F8: 0 | G8: 8,279,135 | H8: 15,985,214 | I8: 8,460,910 | J8: 15,744,880 | K8: 0 | L8: 0 | M8: 240,334 | N8: 16.2 | P8: 98.5 | Q8: =Q11+Q46+Q47 -> 12,793 | R8: =R11+R46+R47 -> 15,575
B9: 시 군 세 | E9: =E31+E48 -> 159,500,000 | F9: =F31+F48 -> 0 | G9: 9,651,636 | H9: 18,631,549 | I9: 9,608,195 | J9: 18,110,506 | K9: 0 | L9: 0 | M9: 521,043 | N9: 11.4 | P9: 97.2 | Q9: =Q31+Q48 -> 9,092 | R9: =R31+R48 -> 9,599
A10: 현 년 도 | B10: 계 | E10: =SUM(E11,E31) -> 256,412,900 | F10: 0 | G10: 17,930,771 | H10: 34,616,763 | I10: 18,069,105 | J10: 33,855,386 | K10: 0 | L10: 0 | M10: 761,377 | N10: 13.2 | P10: 97.8 | Q10: =SUM(Q11,Q31) -> 21,885 | R10: =SUM(R11,R31) -> 25,174
B11: 도 세 | C11: 소 계 | E11: =SUM(E12,E13,E16,E19:E23,E24) -> 96,912,900 | F11: 0 | G11: 8,279,135 | H11: 15,985,214 | I11: 8,460,910 | J11: 15,744,880 | K11: 0 | L11: 0 | M11: 240,334 | N11: 16.2 | P11: 98.5 | Q11: =SUM(Q12,Q13,Q16,Q19:Q23,Q24) -> 12,793 | R11: =SUM(R12,R13,R16,R19:R23,R24) -> 15,575
C12: 취 득 세 | E12: 62,365,100 | G12: 5,849,601 | H12: 10,826,564 | I12: 5,760,957 | J12: 10,680,640 | M12: =H12-J12-L12 -> 145,924 | N12: 17.1 | P12: 98.7 | Q12: 8,260 | R12: 9,708
C13: 등 록 면허세 | D13: 소 계 | E13: =SUM(E14:E15) -> 5,837,800 | F13: 0 | G13: 421,257 | H13: 1,906,706 | I13: 690,897 | J13: 1,822,322 | K13: 0 | L13: 0 | M13: 84,384 | N13: 31.2 | P13: 95.6 | Q13: =SUM(Q14:Q15) -> 1,391 | R13: =SUM(R14:R15) -> 2,312
D14: 등록분 | E14: 5,344,800 | G14: 401,414 | H14: 1,130,372 | I14: 401,414 | J14: 1,130,372 | M14: =H14-J14-L14 -> 0 | N14: 21.1 | P14: 100.0 | Q14: 1,057 | R14: 1,842
D15: 면허분 | E15: 493,000 | G15: 19,843 | H15: 776,334 | I15: 289,483 | J15: 691,950 | M15: =H15-J15-L15 -> 84,384 | N15: 140.4 | P15: 89.1 | Q15: 334 | R15: 470
C16: 지 역 자 원 시설세 | D16: 소 계 | E16: =SUM(E17:E18) -> 6,260,000 | F16: 0 | G16: 82,206 | H16: 95,900 | I16: 88,306 | J16: 95,171 | K16: 0 | L16: 0 | M16: 729 | N16: 1.5 | P16: 99.2 | Q16: =SUM(Q17:Q18) -> 0 | R16: =SUM(R17:R18) -> 0
D17: 특정자원 | E17: 55,000 | G17: 82,206 | H17: 95,900 | I17: 88,306 | J17: 95,171 | M17: =H17-J17-L17 -> 729 | N17: 173.0 | P17: 99.2
D18: 특정부동산 | E18: 6,205,000 | M18: 0 | N18: 0.0
C19: 지방소비세 | M19: 0
C20: 등 록 세 | G20: 54,270 | H20: 77,158 | I20: 54,242 | J20: 76,194 | M20: 964 | P20: 98.8 | Q20: 112 | R20: 112
C21: 면 허 세 | M21: 0
C22: 공동시설세 | M22: 0
C23: 지역개발세 | M23: 0
C24: 지 방 교 육 세 | D24: 소 계 | E24: =SUM(E25:E30) -> 22,450,000 | F24: =SUM(F25:F30) -> 0 | G24: 1,871,801 | H24: 3,078,886 | I24: 1,866,508 | J24: 3,070,553 | K24: 0 | L24: 0 | M24: 8,333 | N24: 13.7 | P24: 99.7 | Q24: =SUM(Q25:Q30) -> 3,030 | R24: =SUM(R25:R30) -> 3,443
D25: 취득세분 | E25: 3,619,000 | G25: 333,096 | H25: 601,842 | I25: 327,987 | J25: 595,967 | M25: =H25-J25-L25 -> 5,875 | N25: 16.5 | P25: 99.0 | Q25: 742 | R25: 846
D26: 등록면허세분 | E26: 1,586,000 | G26: 80,878 | H26: 221,409 | I26: 80,878 | J26: 221,409 | M26: 0 | N26: 14.0 | P26: 100.0 | Q26: 234 | R26: 391
D27: 주민세분 | E27: 95,000 | M27: 0 | N27: 0.0
D28: 재산세분 | E28: 3,000,000 | G28: 16,185 | H28: 16,233 | I28: 16,185 | J28: 16,231 | M28: 2 | N28: 0.5 | P28: 100.0
D29: 자동차세분 | E29: 5,750,000 | G29: 189,532 | H29: 980,998 | I29: 189,348 | J29: 978,542 | M29: 2,456 | N29: 17.0 | P29: 99.7 | Q29: 2,054 | R29: 2,206
D30: 담배소비세분 | E30: 8,400,000 | G30: 1,252,110 | H30: 1,258,404 | I30: 1,252,110 | J30: 1,258,404 | M30: 0 | N30: 15.0 | P30: 100.0
B31: 시 군 세 | C31: 소 계 | E31: =SUM(E32,E33,E34,E37:E44) -> 159,500,000 | F31: =SUM(F32,F33,F34,F37:F44) -> 0 | G31: 9,651,636 | H31: 18,631,549 | I31: 9,608,195 | J31: 18,110,506 | K31: 0 | L31: 0 | M31: 521,043 | N31: 11.4 | P31: 97.2 | Q31: =SUM(Q32,Q33,Q34,Q37:Q44) -> 9,092 | R31: =SUM(R32,R33,R34,R37:R44) -> 9,599
C32: 주 민 세 | E32: 2,950,000 | G32: 758,704 | H32: 769,310 | I32: 758,704 | J32: 769,310 | M32: =H32-J32-L32 -> 0 | N32: 26.1 | P32: 100.0
C33: 재 산 세 | E33: 28,000,000 | G33: 81,070 | H33: 81,309 | I33: 81,070 | J33: 81,298 | M33: =H33-J33-L33 -> 11 | N33: 0.3 | P33: 100.0
C34: 자동 차세 | D34: 소 계 | E34: =SUM(E35:E36) -> 43,300,000 | F34: =SUM(F35:F36) -> 0 | G34: 2,885,027 | H34: 7,787,742 | I34: 2,884,438 | J34: 7,779,332 | K34: 0 | L34: 0 | M34: 8,410 | N34: 18.0 | P34: 99.9 | Q34: =SUM(Q35:Q36) -> 7,518 | R34: =SUM(R35:R36) -> 8,025
D35: 자동차분 | E35: 18,000,000 | G35: 674,662 | H35: 3,389,877 | I35: 674,073 | J35: 3,381,467 | M35: =H35-J35-L35 -> 8,410 | N35: 18.8 | P35: 99.8 | Q35: 7,518 | R35: 8,025
D36: 주 행 분 | E36: 25,300,000 | G36: 2,210,365 | H36: 4,397,865 | I36: 2,210,365 | J36: 4,397,865 | M36: 0 | N36: 17.4 | P36: 100.0
C37: 담배소비세 | E37: 16,300,000 | G37: 2,504,220 | H37: 2,516,808 | I37: 2,504,220 | J37: 2,516,808 | M37: 0 | N37: 15.4 | P37: 100.0
C38: 지방소득세 | E38: 68,950,000 | G38: 3,422,615 | H38: 7,476,380 | I38: 3,379,763 | J38: 6,963,758 | M38: 512,622 | N38: 10.1 | P38: 93.1 | Q38: 1,574 | R38: 1,574
C39: 주 행 세 | M39: 0
C40: 농업소득세 | M40: 0
C41: 도 축 세 | M41: 0
C42: 종합토지세 | M42: 0
C43: 도시계획세 | M43: 0
C44: 사 업 소세 | M44: 0
A45: 과 년 도 | B45: 계 | E45: =SUM(E46:E48) -> 0 | F45: =SUM(F46:F48) -> 0 | G45: 0 | H45: 0 | I45: 0 | J45: 0 | K45: 0 | L45: 0 | M45: 0 | Q45: =SUM(Q46:Q48) -> 0 | R45: =SUM(R46:R48) -> 0
B46: 도 세 | M46: =H46-J46-L46 -> 0
B47: 지방교육세 | M47: =H47-J47-L47 -> 0
B48: 시 군 세 | M48: =H48-J48-L48 -> 0
